bitfinex-derivatives/quotes_BNBF0:USTF0_20260110
["timestamp","ask_amount","ask_price","bid_price","bid_amount"]
[1768025582943,0.19120249,910.79,909.15,0.7148909]
[1768025583244,0.19120249,910.79,909.16,0.7148909]
[1768025583540,0.19120249,910.79,909.17,0.7148909]
[1768025583744,0.19120249,910.79,909.12,1.271]
[1768025583941,0.19120249,910.79,909.13,0.71509065]
[1768025584245,0.19120249,910.79,909.14,0.71509065]
[1768025584446,0.19120249,910.79,909.15,0.71509065]
[1768025584644,0.19120249,910.79,909.16,0.71509065]
[1768025584844,0.19120249,910.79,909.17,0.71509065]
[1768025585044,0.19120249,910.79,909.12,1.271]
[1768025585243,0.19120249,910.79,909.13,0.71506125]
[1768025585446,0.19120249,910.79,909.14,0.71506125]
[1768025585647,0.19120249,910.79,909.15,0.71506125]
[1768025585943,0.19120249,910.79,909.16,0.71506125]
[1768025586143,0.19120249,910.79,909.17,0.71506125]
[1768025586344,0.19120249,910.79,909.12,1.271]
[1768025586542,0.19120249,910.79,909.13,0.71506683]
[1768025586745,0.19120249,910.79,909.14,0.71506683]
[1768025586943,0.19120249,910.79,909.15,0.71506683]
[1768025587148,0.19120249,910.79,909.16,0.71506683]
[1768025587447,0.19120249,910.79,909.17,0.71506683]
[1768025587647,0.19120249,910.79,909.12,1.271]
[1768025587846,0.19120249,910.79,909.13,0.71529852]
[1768025588044,0.19120249,910.79,909.14,0.71529852]
[1768025588250,0.19120249,910.79,909.15,0.71529852]
[1768025588550,0.19120249,910.79,909.16,0.71529852]
[1768025588749,0.19120249,910.79,909.17,0.71529852]
[1768025588950,0.19120249,910.79,909.12,1.271]
[1768025589151,0.19120249,910.79,909.13,0.71533291]
[1768025589450,0.19120249,910.79,909.14,0.71533291]
[1768025589650,0.19120249,910.79,909.15,0.71533291]
[1768025589846,0.19120249,910.79,909.16,0.71533291]
[1768025590050,0.19120249,910.79,909.17,0.71533291]
[1768025590250,0.19120249,910.79,909.18,0.71533291]
[1768025590550,0.19120249,910.79,909.12,1.271]
[1768025590751,0.19120249,910.79,909.13,0.71544845]
[1768025590947,0.19120249,910.79,909.14,0.71544845]
[1768025591247,0.19120249,910.79,909.15,0.71544845]
[1768025591448,0.19120249,910.79,909.16,0.71544845]
[1768025591647,0.19120249,910.79,909.17,0.71544845]
[1768025591946,0.19120249,910.79,909.18,0.71544845]
[1768025592148,0.19120249,910.79,909.19,0.71563683]
[1768025592346,0.19120249,910.79,909.12,1.271]
[1768025592547,0.19120249,910.79,909.13,0.71566637]
[1768025592850,0.19120249,910.79,909.14,0.71566637]
[1768025593148,0.19120249,910.79,909.12,1.271]
[1768025593348,2.75675331,910.78,909.13,0.71577993]
[1768025593553,2.75675331,910.78,909.14,0.71577993]
[1768025593752,2.75675331,910.78,909.12,1.271]
[1768025594053,2.75675331,910.78,909.13,0.71577993]
[1768025594249,2.75675331,910.77,909.14,0.71577993]
[1768025594450,2.75675331,910.77,909.12,1.271]
[1768025594651,2.75675331,910.77,909.13,0.71592307]
[1768025594854,2.75675331,910.77,909.14,0.71592307]
[1768025595054,2.75675331,910.77,909.15,0.71610013]
[1768025595255,2.75675331,910.76,909.12,1.271]
[1768025595550,2.75675331,910.76,909.13,0.71596967]
[1768025595754,2.75675331,910.76,909.14,0.71596967]
[1768025595951,2.75675331,910.76,909.12,1.271]
[1768025595952,2.75675331,910.76,909.15,0.71596967]
[1768025596153,2.75675331,910.76,909.16,0.71619289]
[1768025596352,2.75675331,910.75,909.12,1.271]
[1768025596553,2.75675331,910.75,909.13,0.71619289]
[1768025596753,2.75675331,910.75,909.14,0.71619289]
[1768025596954,2.75675331,910.75,909.15,0.71619289]
[1768025597154,2.75675331,910.75,909.16,0.71619289]
[1768025597450,2.75675331,910.75,909.12,1.271]
[1768025597651,2.75675331,910.75,909.13,0.71617357]
[1768025597848,2.75675331,910.75,909.14,0.71617357]
[1768025598051,2.75675331,910.75,909.12,1.271]
[1768025598052,2.75675331,910.75,909.15,0.71617357]
[1768025598254,2.75675331,910.75,909.16,0.71617357]
[1768025598454,2.75675331,910.75,909.12,1.271]
[1768025598654,2.75675331,910.75,909.13,0.71614991]
[1768025598855,2.75675331,910.75,909.14,0.71614991]
[1768025599056,2.75675331,910.75,909.15,0.71614991]
[1768025599257,2.75675331,910.75,909.16,0.71614991]
[1768025599455,2.75675331,910.76,909.12,1.271]
[1768025599654,2.75675331,910.76,909.13,0.71613121]
[1768025599854,2.75675331,910.76,909.14,0.71613121]
[1768025600058,2.75675331,910.76,909.15,0.71613121]
[1768025600357,2.75675331,910.76,909.16,0.71613121]
[1768025600560,2.75675331,910.76,909.12,1.271]
[1768025600758,2.75675331,910.76,909.13,0.71612759]
[1768025600962,2.75675331,910.76,909.14,0.71612759]
[1768025601159,2.75675331,910.76,909.15,0.71612759]
[1768025601364,2.75675331,910.76,909.16,0.71612759]
[1768025601562,2.75675331,910.76,909.12,1.271]
[1768025601764,2.75675331,910.76,909.13,0.71611791]
[1768025601965,2.75675331,910.76,909.14,0.71611791]
[1768025602264,2.75675331,910.76,909.15,0.71611791]
[1768025602464,2.75675331,910.76,909.16,0.71611791]
[1768025602762,2.75675331,910.76,909.12,1.271]
[1768025602962,2.75675331,910.76,909.13,0.71616823]
[1768025603162,2.75675331,910.76,909.12,1.271]
[1768025603163,0.19120249,910.79,909.14,0.71616823]
[1768025603361,0.19120249,910.79,909.15,0.71616823]
[1768025603561,0.19120249,910.79,909.16,0.71616823]
[1768025603762,0.19120249,910.79,909.17,0.71616823]
[1768025603963,0.19120249,910.79,909.18,0.71616823]
[1768025604163,0.19120249,910.79,909.19,0.71616823]
[1768025604363,0.19120249,910.79,909.2,0.71616823]
[1768025604563,0.19120249,910.79,909.12,1.271]
[1768025604762,0.19120249,910.79,909.13,0.71617029]
[1768025605064,0.19120249,910.79,909.14,0.71617029]
[1768025605263,0.19120249,910.79,909.15,0.71617029]
[1768025605462,0.19120249,910.79,909.16,0.71617029]
[1768025605666,0.19120249,910.79,909.17,0.71617029]
[1768025605962,0.19120249,910.79,909.18,0.71617029]
[1768025606162,0.19120249,910.79,909.19,0.71617029]
[1768025606366,0.19120249,910.79,909.2,0.71617029]
[1768025606560,0.19120249,910.79,908.91,0.82390818]
[1768025606765,0.19120249,910.79,908.92,0.71619091]
[1768025606965,0.19120249,910.79,908.93,0.71619091]
[1768025607166,0.19120249,910.79,908.94,0.71619091]
[1768025607369,0.19120249,910.79,908.95,0.71619091]
[1768025607566,0.19120249,910.79,908.96,0.71619091]
[1768025607770,0.19120249,910.79,908.97,0.71619091]
[1768025607968,0.19120249,910.79,908.98,0.71619091]
[1768025608167,0.19120249,910.79,908.99,0.71619091]
[1768025608372,2.9479558,910.79,909.0,0.71619091]
[1768025608572,2.9479558,910.79,909.01,0.71619091]
[1768025608772,2.9479558,910.79,909.02,0.71619091]
[1768025608972,2.9479558,910.79,909.03,0.71619091]
[1768025609169,2.9479558,910.79,909.04,0.71619091]
[1768025609374,2.9479558,910.79,909.05,0.71619091]
[1768025609575,2.9479558,910.79,909.06,0.71619091]
[1768025609773,2.9479558,910.79,909.07,0.71619091]
[1768025609976,2.9479558,910.79,909.08,0.71619091]
[1768025610177,2.9479558,910.79,909.09,0.71619091]
[1768025610374,2.9479558,910.79,909.1,0.71619091]
[1768025610574,2.9479558,910.79,909.11,0.71619091]
[1768025610777,2.9479558,910.79,909.12,0.71619091]
[1768025610976,2.9479558,910.79,909.13,0.71619091]
[1768025611174,2.9479558,910.79,909.05,1.455]
[1768025611175,2.9479558,910.79,909.14,0.71619091]
[1768025611372,2.9479558,910.79,909.15,0.71619091]
[1768025611572,2.9479558,910.79,909.16,0.71619091]
[1768025611773,2.9479558,910.79,909.17,0.71619091]
[1768025612073,2.9479558,910.79,909.18,0.71619091]
[1768025612278,2.9479558,910.79,909.19,0.71619091]
[1768025612479,2.9479558,910.79,909.2,0.71619091]
[1768025612775,2.9479558,910.79,909.21,0.71619091]
[1768025613075,2.9479558,910.79,909.05,1.455]
[1768025613280,2.9479558,910.79,909.06,0.71641709]
[1768025613579,2.9479558,910.79,909.07,0.71641709]
[1768025613778,2.9479558,910.79,909.08,0.71641709]
[1768025613979,2.9479558,910.79,909.09,0.71641709]
[1768025614179,2.75675331,910.78,909.1,0.71641709]
[1768025614379,2.75675331,910.78,909.11,0.71641709]
[1768025614675,2.75675331,910.78,909.12,0.71641709]
[1768025614876,2.75675331,910.78,909.13,0.71641709]
[1768025615076,2.75675331,910.78,909.14,0.71641709]
[1768025615379,2.75675331,910.78,909.15,0.71641709]
[1768025615675,2.75675331,910.77,909.16,0.71641709]
[1768025615875,2.75675331,910.77,909.17,0.71641709]
[1768025616077,2.75675331,910.77,909.18,0.71641709]
[1768025616278,2.75675331,910.77,909.19,0.71641709]
[1768025616477,2.75675331,910.77,909.2,0.71641709]
[1768025616775,2.75675331,910.77,909.21,0.71641709]
[1768025617079,2.75675331,910.77,909.22,0.71641709]
[1768025617376,2.75675331,910.77,909.05,1.455]
[1768025617580,2.75675331,910.77,909.06,0.71663853]
[1768025617780,2.75675331,910.77,909.07,0.71663853]
[1768025617980,2.75675331,910.77,909.08,0.71663853]
[1768025618178,2.75675331,910.76,909.09,0.71663853]
[1768025618380,2.75675331,910.76,909.1,0.71663853]
[1768025618580,2.75675331,910.76,909.11,0.71663853]
[1768025618881,2.75675331,910.76,909.12,0.71663853]
[1768025619076,2.75675331,910.76,909.13,0.71663853]
[1768025619280,2.75675331,910.76,909.14,0.71663853]
[1768025619481,2.75675331,910.76,909.15,0.71663853]
[1768025619682,2.75675331,910.76,909.16,0.71663853]
[1768025619977,2.75675331,910.76,909.17,0.71663853]
[1768025620177,2.75675331,910.76,909.18,0.71663853]
[1768025620379,2.75675331,910.76,909.19,0.71663853]
[1768025620579,2.75675331,910.76,909.2,0.71663853]
[1768025620778,2.75675331,910.76,909.21,0.71663853]
[1768025620982,2.75675331,910.76,909.22,0.71663853]
[1768025621179,2.75675331,910.76,909.23,0.71663853]
[1768025621386,2.75675331,910.75,909.24,0.71663853]
[1768025621582,2.75675331,910.75,909.05,1.455]
[1768025621786,2.75675331,910.75,909.06,0.7169692]
[1768025621986,2.75675331,910.75,909.07,0.7169692]
[1768025622182,2.75675331,910.75,909.08,0.7169692]
[1768025622383,2.75675331,910.74,909.09,0.7169692]
[1768025622584,2.75675331,910.74,909.1,0.7169692]
[1768025622788,2.75675331,910.74,909.11,0.7169692]
[1768025622989,2.75675331,910.74,909.12,0.7169692]
[1768025623188,2.75675331,910.74,909.13,0.7169692]
[1768025623489,2.75675331,910.74,909.14,0.7169692]
[1768025623689,2.75675331,910.74,909.15,0.7169692]
[1768025623889,2.75675331,910.74,909.16,0.7169692]
[1768025624084,2.75675331,910.74,909.17,0.7169692]
[1768025624386,2.75675331,910.74,909.18,0.7169692]
[1768025624587,2.75675331,910.73,909.19,0.7169692]
[1768025624791,2.75675331,910.73,909.2,0.7169692]
[1768025625090,2.75675331,910.73,909.21,0.7169692]
[1768025625294,2.75675331,910.73,909.22,0.7169692]
[1768025625487,2.75675331,910.73,909.23,0.7169692]
[1768025625784,2.75675331,910.73,909.24,0.7169692]
[1768025625991,2.75675331,910.73,909.05,1.455]
[1768025626290,2.75675331,910.73,909.06,0.71672433]
[1768025626490,2.75675331,910.73,909.07,0.71672433]
[1768025626686,2.75675331,910.73,909.08,0.71672433]
[1768025626890,2.75675331,910.73,909.09,0.71672433]
[1768025627090,2.75675331,910.72,909.1,0.71672433]
[1768025627290,2.75675331,910.72,909.11,0.71672433]
[1768025627487,2.75675331,910.72,909.12,0.71672433]
[1768025627689,2.75675331,910.72,909.13,0.71672433]
[1768025627888,2.75675331,910.72,909.14,0.71672433]
[1768025628086,2.75675331,910.71,909.15,0.71672433]
[1768025628287,2.75675331,910.71,909.16,0.71672433]
[1768025628587,2.75675331,910.69,909.17,0.71672433]
[1768025628787,2.75675331,910.69,909.18,0.71672433]
[1768025629091,2.75675331,910.69,909.19,0.71672433]
[1768025629288,2.75675331,910.69,909.2,0.71672433]
[1768025629489,2.75675331,910.69,909.21,0.71672433]
[1768025629691,2.75675331,910.69,909.22,0.71672433]
[1768025629891,2.75675331,910.69,909.23,0.71672433]
[1768025630092,2.75675331,910.69,909.24,0.71672433]
[1768025630390,2.75675331,910.69,909.25,0.71672433]
[1768025630588,2.75675331,910.69,909.05,1.455]
[1768025630789,2.75675331,910.69,909.06,0.71088829]
[1768025630988,2.75675331,910.69,909.07,0.71088829]
[1768025631192,2.75675331,910.69,909.08,0.71088829]
[1768025631389,2.75675331,910.69,909.09,0.71088829]
[1768025631592,2.75675331,910.69,909.1,0.71088829]
[1768025631792,2.75675331,910.69,909.11,0.71088829]
[1768025631991,2.75675331,910.69,909.12,0.71088829]
[1768025632193,2.75675331,910.69,909.13,0.71088829]
[1768025632490,2.75675331,910.69,909.14,0.71088829]
[1768025632688,2.75675331,910.69,909.15,0.71088829]
[1768025632889,2.75675331,910.69,909.16,0.71088829]
[1768025633093,2.75675331,910.69,909.17,0.71088829]
[1768025633290,2.75675331,910.66,909.18,0.71088829]
[1768025633492,2.75675331,910.66,909.19,0.71088829]
[1768025633794,2.75675331,910.66,909.2,0.71088829]
[1768025633992,2.75675331,910.66,909.21,0.71088829]
[1768025634192,2.75675331,910.66,909.05,1.455]
[1768025634394,2.75675331,910.66,909.06,0.7109186]
[1768025634595,2.75675331,910.66,909.07,0.7109186]
[1768025634795,2.75675331,910.66,909.08,0.7109186]
[1768025634994,2.75675331,910.66,909.05,1.455]
[1768025634995,2.75675331,910.66,909.09,0.7109186]
[1768025635193,2.75675331,910.66,909.1,0.7109186]
[1768025635394,2.75675331,910.66,909.11,0.7109186]
[1768025635692,2.75675331,910.66,909.12,0.7109186]
[1768025635897,2.75675331,910.66,909.13,0.7109186]
[1768025636192,2.75675331,910.66,909.05,1.455]
[1768025636193,2.75675331,910.66,909.14,0.7109186]
[1768025636394,2.75675331,910.66,909.15,0.7109186]
[1768025636594,2.75675331,910.66,909.16,0.7109186]
[1768025636794,2.75675331,910.66,909.17,0.7109186]
[1768025636993,2.75675331,910.66,909.18,0.7109186]
[1768025637297,2.75675331,910.66,909.19,0.7109186]
[1768025637592,2.75675331,910.66,909.2,0.7109186]
[1768025637797,2.75675331,910.66,909.21,0.7109186]
[1768025637994,2.75675331,910.66,909.22,0.7109186]
[1768025638194,2.75675331,910.66,909.05,1.455]
[1768025638394,2.75675331,910.66,909.06,0.71098673]
[1768025638593,2.75675331,910.66,909.07,0.71098673]
[1768025638792,2.75675331,910.66,909.08,0.71098673]
[1768025639094,2.75675331,910.66,909.09,0.71098673]
[1768025639295,2.75675331,910.66,909.1,0.71098673]
[1768025639592,2.75675331,910.66,909.11,0.71098673]
[1768025639796,2.75675331,910.66,909.12,0.71098673]
[1768025639996,2.75675331,910.66,909.13,0.71098673]
[1768025640294,2.75675331,910.66,909.14,0.71098673]
[1768025640493,2.75675331,910.66,909.15,0.71098673]
[1768025640695,2.75675331,910.66,909.16,0.71098673]
[1768025640895,2.75675331,910.66,909.17,0.71098673]
[1768025641099,2.75675331,910.66,909.18,0.71098673]
[1768025641297,2.75675331,910.66,909.19,0.71098673]
[1768025641497,2.75675331,910.66,909.2,0.71098673]
[1768025641697,2.75675331,910.66,909.05,1.455]
[1768025641698,2.75675331,910.66,909.21,0.71098673]
[1768025641897,2.75675331,910.66,909.22,0.71098673]
[1768025642101,2.75675331,910.66,909.05,1.455]
[1768025642303,2.75675331,910.66,909.06,0.7109875]
[1768025642502,2.75675331,910.66,909.07,0.7109875]
[1768025642700,2.75675331,910.66,909.08,0.7109875]
[1768025642898,2.75675331,910.66,909.09,0.7109875]
[1768025643105,2.75675331,910.66,909.1,0.7109875]
[1768025643400,2.75675331,910.7,909.11,0.7109875]
[1768025643604,2.75675331,910.7,909.12,0.7109875]
[1768025643800,2.75675331,910.7,909.13,0.7109875]
[1768025644005,2.75675331,910.7,909.14,0.7109875]
[1768025644205,2.75675331,910.7,909.15,0.7109875]
[1768025644402,2.75675331,910.7,909.16,0.7109875]
[1768025644606,2.75675331,910.7,909.17,0.7109875]
[1768025644903,2.75675331,910.7,909.18,0.7109875]
[1768025645103,2.75675331,910.7,909.19,0.7109875]
[1768025645302,2.75675331,910.7,909.2,0.7109875]
[1768025645502,0.19120249,910.79,909.21,0.7109875]
[1768025645707,0.19120249,910.79,909.22,0.7109875]
[1768025645905,0.19120249,910.79,909.23,0.7109875]
[1768025646106,0.19120249,910.79,909.24,0.7109875]
[1768025646308,0.19120249,910.79,909.25,0.7109875]
[1768025646508,0.19120249,910.79,909.26,0.7109875]
[1768025646808,0.19120249,910.79,909.27,0.7109875]
[1768025647008,0.19120249,910.79,909.28,0.7109875]
[1768025647205,0.19120249,910.79,909.29,0.7109875]
[1768025647509,0.19120249,910.79,909.3,0.7109875]
[1768025647709,0.19120249,910.79,909.31,0.7109875]
[1768025647909,0.19120249,910.79,909.32,0.7109875]
[1768025648111,0.19120249,910.79,909.33,0.7109875]
[1768025648311,0.19120249,910.79,909.34,0.7109875]
[1768025648608,0.19120249,910.79,909.35,0.7109875]
[1768025648807,0.19120249,910.79,909.06,0.82390818]
[1768025649005,0.19120249,910.79,909.07,0.70981118]
[1768025649205,0.19120249,910.79,909.08,0.70981118]
[1768025649409,0.19120249,910.79,909.09,0.70981118]
[1768025649608,0.19120249,910.79,909.1,0.70981118]
[1768025649806,0.19120249,910.79,909.11,0.70981118]
[1768025650008,0.19120249,910.79,909.12,0.70981118]
[1768025650213,0.19120249,910.79,909.13,0.70981118]
[1768025650511,0.19120249,910.79,909.14,0.70981118]
[1768025650707,0.19120249,910.79,909.15,0.70981118]
[1768025650909,0.19120249,910.79,909.16,0.70981118]
[1768025651208,0.19120249,910.79,909.17,0.70981118]
[1768025651413,0.19120249,910.79,909.18,0.70981118]
[1768025651613,0.19120249,910.79,909.05,1.455]
[1768025651614,0.19120249,910.79,909.19,0.70981118]
[1768025651810,0.19120249,910.79,909.2,0.70981118]
[1768025652015,0.19120249,910.79,909.21,0.70981118]
[1768025652214,0.19120249,910.79,909.22,0.70981118]
[1768025652513,0.19120249,910.79,909.23,0.70981118]
[1768025652715,0.19120249,910.79,909.24,0.70981118]
[1768025652915,0.19120249,910.79,909.25,0.70981118]
[1768025653112,0.19120249,910.79,909.26,0.70981118]
[1768025653315,0.19120249,910.79,909.27,0.70981118]
[1768025653616,0.19120249,910.79,909.28,0.70981118]
[1768025653812,0.19120249,910.79,909.29,0.70981118]
[1768025654013,0.19120249,910.79,909.3,0.70981118]
[1768025654222,0.19120249,910.79,909.31,0.70981118]
[1768025654418,0.19120249,910.79,909.32,0.70981118]
[1768025654622,0.19120249,910.79,909.33,0.70981118]
[1768025654924,0.19120249,910.79,909.03,0.82390818]
[1768025655222,0.19120249,910.79,909.04,0.70931407]
[1768025655421,0.19120249,910.79,909.05,0.70931407]
[1768025655626,0.19120249,910.79,909.06,0.70931407]
[1768025655917,0.19120249,910.79,909.07,0.70931407]
[1768025656224,0.19120249,910.79,909.08,0.70931407]
[1768025656420,0.19120249,910.79,909.09,0.70931407]
[1768025656620,0.19120249,910.79,909.1,0.70931407]
[1768025656819,0.19120249,910.79,909.11,0.70931407]
[1768025657024,0.19120249,910.79,909.12,0.70931407]
[1768025657323,0.19120249,910.79,909.13,0.70931407]
[1768025657523,0.19120249,910.79,909.04,2.25690818]
[1768025657524,0.19120249,910.79,909.14,0.70931407]
[1768025657826,0.19120249,910.79,909.15,0.70931407]
[1768025658023,0.19120249,910.79,909.16,0.70931407]
[1768025658227,0.19120249,910.79,909.17,0.70931407]
[1768025658524,0.19120249,910.79,909.18,0.70931407]
[1768025658824,0.19120249,910.79,909.19,0.70931407]
[1768025659019,0.19120249,910.79,909.2,0.70931407]
[1768025659225,0.19120249,910.79,909.21,0.70931407]
[1768025659421,0.19120249,910.79,909.22,0.70931407]
[1768025659620,0.19120249,910.79,909.23,0.70931407]
[1768025659824,0.19120249,910.79,909.24,0.70931407]
[1768025660022,0.19120249,910.79,909.25,0.70931407]
[1768025660326,0.19120249,910.79,909.26,0.70931407]
[1768025660524,0.19120249,910.79,909.27,0.70931407]
[1768025660820,0.19120249,910.79,909.28,0.70931407]
[1768025661024,0.19120249,910.79,909.29,0.70931407]
[1768025661322,0.19120249,910.79,909.3,0.70931407]
[1768025661522,0.19120249,910.79,909.31,0.70931407]
[1768025661721,0.19120249,910.79,909.32,0.70931407]
[1768025661921,0.19120249,910.79,909.33,0.70931407]
[1768025662123,0.19120249,910.79,909.34,0.70931407]
[1768025662324,0.19120249,910.79,909.35,0.70931407]
[1768025662526,0.19120249,910.79,909.36,0.70931407]
[1768025662726,0.19120249,910.79,909.37,0.70931407]
[1768025663026,0.19120249,910.79,909.38,0.70931407]
[1768025663227,0.19120249,910.79,909.11,0.82390818]
[1768025663228,0.19120249,910.79,909.39,0.70931407]
[1768025663524,0.19120249,910.79,909.1,0.82390818]
[1768025663827,0.19120249,910.79,909.11,0.70744986]
[1768025664027,0.19120249,910.79,909.12,0.70744986]
[1768025664229,0.19120249,910.79,909.13,0.70744986]
[1768025664423,0.19120249,910.79,909.14,0.70744986]
[1768025664726,0.19120249,910.79,909.15,0.70744986]
[1768025664923,0.19120249,910.79,909.16,0.70744986]
[1768025665128,0.19120249,910.79,909.17,0.70744986]
[1768025665326,0.19120249,910.79,909.18,0.70744986]
[1768025665530,0.19120249,910.79,909.19,0.70744986]
[1768025665726,0.19120249,910.79,909.2,0.70744986]
[1768025666030,0.19120249,910.79,909.21,0.70744986]
[1768025666230,0.19120249,910.79,909.22,0.70744986]
[1768025666530,0.19120249,910.79,909.23,0.70744986]
[1768025666826,0.19120249,910.79,909.24,0.70744986]
[1768025667026,0.19120249,910.79,909.25,0.70744986]
[1768025667226,0.19120249,910.79,909.26,0.70744986]
[1768025667429,0.19120249,910.79,909.27,0.70744986]
[1768025667728,0.19120249,910.79,909.28,0.70744986]
[1768025667926,0.19120249,910.79,909.29,0.70744986]
[1768025668229,0.19120249,910.79,909.3,0.70744986]
[1768025668427,0.19120249,910.79,909.31,0.70744986]
[1768025668730,0.19120249,910.79,909.32,0.70744986]
[1768025668927,0.19120249,910.79,909.33,0.70744986]
[1768025669132,0.19120249,910.79,909.34,0.70744986]
[1768025669333,0.19120249,910.79,909.35,0.70744986]
[1768025669531,0.19120249,910.79,909.36,0.70744986]
[1768025669729,0.19120249,910.79,909.37,0.70744986]
[1768025669928,0.19120249,910.79,909.08,0.82390818]
[1768025670133,0.19120249,910.79,909.09,0.70709897]
[1768025670333,0.19120249,910.79,909.1,0.70709897]
[1768025670533,0.19120249,910.79,909.11,0.70709897]
[1768025670833,0.19120249,910.79,909.12,0.70709897]
[1768025671028,0.19120249,910.79,909.13,0.70709897]
[1768025671233,0.19120249,910.79,909.14,0.70709897]
[1768025671434,0.19120249,910.79,909.15,0.70709897]
[1768025671635,0.19120249,910.79,909.16,0.70709897]
[1768025671830,0.19120249,910.79,909.17,0.70709897]
[1768025672030,0.19120249,910.79,909.08,0.82390818]
[1768025672031,0.19120249,910.79,909.18,0.70709897]
[1768025672230,0.19120249,910.79,909.19,0.70709897]
[1768025672433,0.19120249,910.79,909.2,0.70709897]
[1768025672634,0.19120249,910.79,909.21,0.70709897]
[1768025672834,0.19120249,910.79,909.22,0.70709897]
[1768025673134,0.19120249,910.79,909.23,0.70709897]
[1768025673335,0.19120249,910.79,909.24,0.70709897]
[1768025673531,0.19120249,910.79,909.25,0.70709897]
[1768025673735,0.19120249,910.79,909.26,0.70709897]
[1768025673935,0.19120249,910.79,909.27,0.70709897]
[1768025674236,0.19120249,910.79,909.28,0.70709897]
[1768025674437,0.19120249,910.79,909.29,0.70709897]
[1768025674732,0.19120249,910.79,909.3,0.70709897]
[1768025674937,0.19120249,910.79,909.31,0.70709897]
[1768025675134,0.19120249,910.79,909.32,0.70709897]
[1768025675433,0.19120249,910.79,909.33,0.70709897]
[1768025675633,0.19120249,910.79,909.34,0.70709897]
[1768025675839,0.19120249,910.79,909.35,0.70709897]
[1768025676038,0.19120249,910.79,909.36,0.70709897]
[1768025676335,0.19120249,910.79,909.37,0.70709897]
[1768025676539,0.19120249,910.79,909.38,0.70709897]
[1768025676741,0.19120249,910.79,909.09,0.82390818]
[1768025676936,0.19120249,910.79,909.1,0.70705521]
[1768025677240,0.19120249,910.79,909.11,0.70705521]
[1768025677436,0.19120249,910.79,909.12,1.53096339]
[1768025677635,0.19120249,910.79,909.13,0.70705521]
[1768025677840,0.19120249,910.79,909.14,0.70705521]
[1768025678040,0.19120249,910.79,909.15,0.70705521]
[1768025678336,0.19120249,910.79,909.16,0.70705521]
[1768025678640,0.19120249,910.79,909.17,0.70705521]
[1768025678840,0.19120249,910.79,909.18,0.70705521]
[1768025679037,0.19120249,910.79,909.19,0.70705521]
[1768025679343,0.19120249,910.79,909.2,0.70705521]
[1768025679642,0.19120249,910.79,909.21,0.70705521]
[1768025679841,0.19120249,910.79,909.22,0.70705521]
[1768025680140,0.19120249,910.79,909.23,0.70705521]
[1768025680338,0.19120249,910.79,909.24,0.70705521]
[1768025680538,0.19120249,910.79,909.25,0.70705521]
[1768025680842,0.19120249,910.79,909.26,0.70705521]
[1768025681140,0.19120249,910.79,909.27,0.70705521]
[1768025681339,0.19120249,910.79,909.28,0.70705521]
[1768025681643,0.19120249,910.79,909.29,0.70705521]
[1768025681843,0.19120249,910.79,909.3,0.70705521]
[1768025682043,0.19120249,910.79,909.31,0.70705521]
[1768025682244,0.19120249,910.79,909.32,0.70705521]
[1768025682544,0.19120249,910.79,909.33,0.70705521]
[1768025682744,0.19120249,910.79,909.34,0.70705521]
[1768025683041,0.19120249,910.79,909.35,0.70705521]
[1768025683242,0.19120249,910.79,909.36,0.70705521]
[1768025683442,0.19120249,910.79,909.1,0.82390818]
[1768025683443,0.19120249,910.79,909.37,0.70705521]
[1768025683640,0.19120249,910.79,909.38,0.70705521]
[1768025683842,0.19120249,910.79,909.39,0.70705521]
[1768025684043,0.19120249,910.79,909.4,0.70728271]
[1768025684241,0.19120249,910.79,909.11,0.82390818]
[1768025684543,0.19120249,910.79,909.12,0.70727812]
[1768025684743,0.19120249,910.79,909.13,0.70727812]
[1768025684946,0.19120249,910.79,909.14,0.70727812]
[1768025685143,0.19120249,910.79,909.15,0.70727812]
[1768025685343,0.19120249,910.79,909.16,0.70727812]
[1768025685545,0.19120249,910.79,909.17,0.70727812]
[1768025685742,0.19120249,910.79,909.18,0.70727812]
[1768025685946,0.19120249,910.79,909.19,0.70727812]
[1768025686248,0.19120249,910.79,909.2,0.70727812]
[1768025686546,0.19120249,910.79,909.21,0.70727812]
[1768025686747,0.19120249,910.79,909.22,0.70727812]
[1768025686947,0.19120249,910.79,909.23,0.70727812]
[1768025687147,0.19120249,910.79,909.24,0.70727812]
[1768025687346,0.19120249,910.79,909.25,0.70727812]
[1768025687547,0.19120249,910.79,909.26,0.70727812]
[1768025687846,0.19120249,910.79,909.27,0.70727812]
[1768025688042,0.19120249,910.79,909.28,0.70727812]
[1768025688247,0.19120249,910.79,909.29,0.70727812]
[1768025688445,0.19120249,910.79,909.3,0.70727812]
[1768025688645,0.19120249,910.79,909.31,0.70727812]
[1768025688845,0.19120249,910.79,909.32,0.70727812]
[1768025689045,0.19120249,910.79,909.33,0.70727812]
[1768025689244,0.19120249,910.79,909.34,0.70727812]
[1768025689446,0.19120249,910.79,909.35,0.70727812]
[1768025689644,0.19120249,910.79,909.36,0.70727812]
[1768025689861,0.19120249,910.79,909.37,0.70727812]
[1768025690047,0.19120249,910.79,909.38,0.70727812]
[1768025690248,0.19120249,910.79,909.39,0.70727812]
[1768025690446,0.19120249,910.79,909.4,0.70727812]